bitfinex/quotes_BTCUSD_20241024
["timestamp","ask_amount","ask_price","bid_price","bid_amount"]
[1729732169335,1.075005,67547.0,67546.0,4.8e-07]
[1729732169795,1.0981961,67547.0,67546.0,4.8e-07]
[1729732170228,1.0981961,67547.0,67546.0,0.00164848]
[1729732170863,1.0981961,67547.0,67546.0,4.8e-07]
[1729732171311,0.94769229,67547.0,67546.0,4.8e-07]
[1729732171516,1.06196117,67547.0,67546.0,4.8e-07]
[1729732171926,0.95146397,67547.0,67546.0,4.8e-07]
[1729732172371,1.06196117,67547.0,67546.0,4.8e-07]
[1729732172597,0.95146397,67547.0,67546.0,4.8e-07]
[1729732172819,0.45842885,67547.0,67546.0,4.8e-07]
[1729732173034,0.64799229,67547.0,67546.0,4.8e-07]
[1729732177966,0.69219247,67547.0,67546.0,4.8e-07]
[1729732180282,0.64799229,67547.0,67546.0,4.8e-07]
[1729732180693,0.73639266,67547.0,67546.0,4.8e-07]
[1729732180897,0.75939266,67547.0,67546.0,4.8e-07]
[1729732181099,0.67099229,67547.0,67546.0,4.8e-07]
[1729732181308,0.82058923,67547.0,67546.0,4.8e-07]
[1729732182887,0.118474,67525.0,67524.0,0.22203966]
[1729732183087,0.62483919,67525.0,67524.0,0.22203966]
[1729732183293,0.11849,67516.0,67515.0,0.22703966]
[1729732183495,0.37657332,67516.0,67515.0,0.22703966]
[1729732183737,0.25808332,67516.0,67514.0,0.005]
[1729732183966,0.118492,67515.0,67514.0,0.005]
[1729732185202,0.118493,67514.0,67513.0,0.005]
[1729732185412,0.118493,67514.0,67513.0,0.007]
[1729732185618,0.118493,67514.0,67513.0,0.005]
[1729732186921,0.118493,67514.0,67513.0,0.01]
[1729732187131,0.118493,67514.0,67513.0,0.005]
[1729732187990,0.236984,67515.0,67514.0,0.005]
[1729732187991,0.355476,67515.0,67514.0,0.005]
[1729732188192,0.50597981,67515.0,67514.0,0.005]
[1729732188432,0.80569571,67515.0,67514.0,0.005]
[1729732188658,0.80569571,67515.0,67513.0,0.005]
[1729732188659,0.118493,67514.0,67513.0,0.005]
[1729732188835,0.26899681,67514.0,67513.0,0.005]
[1729732189247,0.118502,67509.0,67508.0,0.008674]
[1729732191622,0.118502,67509.0,67508.0,0.003674]
[1729732191623,0.218502,67509.0,67508.0,0.003674]
[1729732191830,0.31650018,67509.0,67508.0,0.003674]
[1729732192042,0.218502,67509.0,67508.0,0.003674]
[1729732192265,0.218502,67509.0,67508.0,0.001674]
[1729732195627,0.218502,67509.0,67508.0,0.003674]
[1729732196895,0.218502,67509.0,67508.0,0.001674]
[1729732197562,0.218502,67509.0,67508.0,0.003674]
[1729732198024,0.17098354,67516.0,67515.0,0.007]
[1729732198025,0.00222194,67516.0,67515.0,0.007]
[1729732198287,0.12071194,67516.0,67515.0,0.017]
[1729732198774,0.12071194,67516.0,67515.0,0.005]
[1729732200343,0.118502,67509.0,67508.0,0.001674]
[1729732200579,0.218502,67509.0,67508.0,0.001674]
[1729732201220,0.213502,67509.0,67508.0,0.001674]
[1729732201867,0.113502,67509.0,67508.0,0.016674]
[1729732202083,0.113502,67509.0,67508.0,0.018674]
[1729732202934,0.113502,67509.0,67508.0,0.016674]
[1729732203155,0.113502,67509.0,67508.0,0.006674]
[1729732204030,0.113502,67509.0,67508.0,0.451064]
[1729732205320,0.113502,67509.0,67508.0,0.453064]
[1729732205945,0.113502,67509.0,67508.0,0.451064]
[1729732206582,0.113502,67509.0,67508.0,0.456064]
[1729732206791,0.113502,67509.0,67508.0,0.453064]
[1729732207106,0.113502,67509.0,67508.0,0.451064]
[1729732207314,0.11572437,67509.0,67508.0,0.446064]
[1729732207518,0.26705318,67509.0,67508.0,0.446064]
[1729732208274,0.36705318,67509.0,67508.0,0.446064]
[1729732209696,0.53581478,67509.0,67508.0,0.446064]
[1729732209925,0.47761122,67509.0,67508.0,0.446064]
[1729732210152,0.68677954,67509.0,67508.0,0.446064]
[1729732211123,0.70977954,67509.0,67508.0,0.446064]
[1729732212068,0.57515318,67509.0,67508.0,0.446064]
[1729732214271,0.68578806,67509.0,67508.0,0.446064]
[1729732214484,0.43343032,67509.0,67508.0,0.446064]
[1729732214690,0.41130297,67509.0,67508.0,0.446064]
[1729732214895,0.36705318,67509.0,67508.0,0.446064]
[1729732215937,0.36705318,67509.0,67508.0,0.396064]
[1729732216736,0.58909284,67509.0,67508.0,0.396064]
[1729732216947,0.36705318,67509.0,67508.0,0.396064]
[1729732217780,0.41130297,67509.0,67508.0,0.396064]
[1729732217989,0.36705318,67509.0,67508.0,0.396064]
[1729732219033,0.70230198,67509.0,67508.0,0.396064]
[1729732219236,0.64417008,67509.0,67508.0,0.396064]
[1729732219453,0.53354038,67509.0,67508.0,0.396064]
[1729732219927,0.70230198,67509.0,67508.0,0.366438]
[1729732220223,0.88740198,67509.0,67508.0,0.366438]
[1729732220423,0.88740198,67509.0,67508.0,0.12551243]
[1729732220649,0.88740198,67509.0,67508.0,4.3e-07]
[1729732220863,0.88740198,67509.0,67481.0,0.001674]
[1729732220864,0.118544,67485.0,67481.0,0.001674]
[1729732221073,0.53780941,67485.0,67481.0,0.006674]
[1729732221278,0.21855,67482.0,67481.0,0.000774]
[1729732221948,0.1,67482.0,67479.0,0.002]
[1729732222158,0.21855,67482.0,67481.0,0.000774]
[1729732222387,0.1,67482.0,67474.0,0.0889]
[1729732222598,0.21855,67482.0,67481.0,0.000774]
[1729732223029,0.21855,67482.0,67478.0,0.00245]
[1729732223030,0.1,67482.0,67478.0,0.00245]
[1729732223248,0.218555,67479.0,67478.0,0.00245]
[1729732223465,0.218555,67479.0,67478.0,0.001676]
[1729732223677,0.218555,67479.0,67478.0,0.00245]
[1729732224598,0.218555,67479.0,67478.0,0.00445]
[1729732225030,0.1,67479.0,67478.0,0.00445]
[1729732225279,0.118552,67481.0,67480.0,0.012774]
[1729732225280,0.00222296,67481.0,67480.0,0.012774]
[1729732225944,0.12077396,67481.0,67480.0,0.012774]
[1729732226160,0.00222296,67481.0,67480.0,0.012774]
[1729732226598,0.12077396,67481.0,67480.0,0.012774]
[1729732226949,0.00222296,67481.0,67480.0,0.012774]
[1729732227041,0.00222296,67481.0,67478.0,0.001676]
[1729732227042,0.218555,67479.0,67478.0,0.001676]
[1729732227713,0.218555,67479.0,67478.0,0.00245]
[1729732227934,0.218555,67479.0,67478.0,0.001676]
[1729732228157,0.218555,67479.0,67478.0,0.00245]
[1729732228383,0.218555,67479.0,67478.0,0.00445]
[1729732229068,0.218555,67479.0,67478.0,0.00245]
[1729732230339,0.218555,67479.0,67478.0,0.001676]
[1729732230565,0.218555,67479.0,67478.0,0.00245]
[1729732231412,0.218555,67479.0,67478.0,0.001676]
[1729732231833,0.218555,67479.0,67478.0,0.00245]
[1729732232278,0.218555,67479.0,67478.0,0.001676]
[1729732233081,0.30218092,67479.0,67478.0,0.001676]
[1729732233287,0.218555,67479.0,67478.0,0.001676]
[1729732233519,0.218555,67479.0,67478.0,0.00245]
[1729732233656,0.218555,67479.0,67478.0,0.001676]
[1729732235384,0.218555,67479.0,67478.0,0.00245]
[1729732235806,0.00222296,67481.0,67480.0,0.002]
[1729732236007,0.10222296,67481.0,67480.0,0.012774]
[1729732236243,0.22077396,67481.0,67480.0,0.012774]
[1729732237105,0.22077396,67481.0,67480.0,0.457344]
[1729732237537,0.12077396,67481.0,67480.0,0.47305018]
[1729732237741,0.22077396,67481.0,67480.0,0.47305018]
[1729732238975,0.10222296,67481.0,67480.0,0.47305018]
[1729732239204,0.22077396,67481.0,67480.0,0.47305018]
[1729732239403,0.1,67481.0,67480.0,0.47305018]
[1729732239827,0.04424404,67497.0,67488.0,0.012774]
[1729732240034,0.22203966,67498.0,67497.0,0.005]
[1729732240270,0.22203966,67498.0,67497.0,0.010774]
[1729732240467,0.22203966,67498.0,67497.0,0.450234]
[1729732240675,0.118522,67498.0,67497.0,0.46589902]
[1729732241289,0.218522,67498.0,67497.0,0.46089902]
[1729732243531,0.218522,67498.0,67497.0,0.46255102]
[1729732245640,0.1,67498.0,67497.0,0.46755102]
[1729732245827,0.08849626,67507.0,67497.0,0.46755102]
[1729732245828,0.21852,67499.0,67498.0,0.005774]
[1729732246035,0.21852,67499.0,67498.0,0.445234]
[1729732246248,0.21852,67499.0,67498.0,0.450234]
[1729732246449,0.21852,67499.0,67498.0,0.46089902]
[1729732246694,0.21852,67499.0,67498.0,0.46589902]
[1729732246852,0.21852,67499.0,67498.0,0.46789902]
[1729732247246,0.21852,67499.0,67498.0,0.46589902]
[1729732247446,0.21852,67499.0,67498.0,0.46089902]
[1729732247663,0.21852,67499.0,67498.0,0.46589902]
[1729732247865,0.21852,67499.0,67498.0,0.46089902]
[1729732253753,0.21852,67499.0,67498.0,0.46789902]
[1729732253963,0.21852,67499.0,67498.0,0.47289902]
[1729732254602,0.21852,67499.0,67498.0,0.47089902]
[1729732254801,0.219346,67499.0,67498.0,0.47089902]
[1729732255884,0.219346,67499.0,67498.0,0.47289902]
[1729732256532,0.219346,67499.0,67498.0,0.47089902]
[1729732256945,0.219346,67499.0,67498.0,0.47289902]
[1729732258752,0.219346,67499.0,67498.0,0.47089902]
[1729732259972,0.219346,67499.0,67498.0,0.46089902]
[1729732260392,0.49616686,67499.0,67498.0,0.46012502]
[1729732260829,0.60686666,67499.0,67498.0,0.46012502]
[1729732261042,0.49616686,67499.0,67498.0,0.46012502]
[1729732261278,0.36984981,67499.0,67498.0,0.46012502]
[1729732262573,0.48066269,67499.0,67498.0,0.46012502]
[1729732263895,0.33015888,67499.0,67498.0,0.46012502]
[1729732264103,0.28583743,67499.0,67498.0,0.46012502]
[1729732264309,0.219346,67499.0,67498.0,0.46212502]
[1729732264740,0.219346,67499.0,67498.0,0.46012502]
[1729732265418,0.219346,67499.0,67498.0,0.46512502]
[1729732265632,0.219346,67499.0,67498.0,0.46712502]
[1729732267301,0.219346,67499.0,67498.0,0.46512502]
[1729732267530,0.219346,67499.0,67498.0,0.46712502]
[1729732267958,0.219346,67499.0,67498.0,0.46512502]
[1729732268164,0.219346,67499.0,67498.0,0.47089902]
[1729732268305,0.219346,67499.0,67498.0,0.47289902]
[1729732268907,0.000826,67499.0,67498.0,0.91568643]
[1729732269111,0.000826,67499.0,67498.0,0.84005939]
[1729732269516,0.00304737,67509.0,67508.0,0.010774]
[1729732269795,0.000825,67509.0,67508.0,0.74155047]
[1729732269993,0.000825,67509.0,67508.0,0.82005047]
[1729732270202,0.000825,67509.0,67508.0,0.82505047]
[1729732271662,0.22203966,67530.0,67529.0,0.002]
[1729732271873,0.22203966,67530.0,67529.0,0.007774]
[1729732272085,0.22203966,67530.0,67529.0,0.46713474]
[1729732272418,0.236919,67534.0,67530.0,0.005774]
[1729732272649,0.236889,67542.0,67536.0,0.005]
[1729732272860,0.118453,67537.0,67536.0,0.012774]
[1729732273065,0.236896,67540.0,67539.0,0.007774]
[1729732273266,0.355344,67540.0,67539.0,0.007774]
[1729732273628,0.118448,67540.0,67539.0,0.007774]
[1729732274287,0.1,67540.0,67539.0,0.575414]
[1729732274503,0.000825,67546.0,67545.0,0.010774]
[1729732274920,0.119262,67546.0,67545.0,0.573374]
[1729732275143,0.119262,67546.0,67545.0,0.58734248]
[1729732275588,0.119262,67546.0,67545.0,0.58934248]
[1729732275809,0.219262,67546.0,67545.0,0.58934248]
[1729732276032,0.100825,67546.0,67545.0,0.78184248]
[1729732276306,0.000825,67546.0,67545.0,1.05578529]
[1729732276779,0.119262,67546.0,67545.0,0.58934248]
[1729732277029,0.000825,67546.0,67545.0,0.70778148]
[1729732277283,0.000825,67546.0,67545.0,0.58934248]
[1729732278276,0.000825,67546.0,67545.0,0.85828529]
[1729732278508,0.000825,67546.0,67545.0,0.86328529]
[1729732279407,0.000825,67546.0,67545.0,0.74484629]
[1729732280186,0.000825,67546.0,67545.0,0.58934248]
[1729732280409,0.119262,67546.0,67545.0,0.58934248]
[1729732280844,0.000825,67546.0,67545.0,0.58934248]
[1729732281102,0.119262,67546.0,67545.0,0.58934248]
[1729732281332,0.119262,67546.0,67545.0,0.58434248]
[1729732283211,0.000825,67546.0,67545.0,0.58434248]
[1729732283443,0.000825,67546.0,67545.0,0.85828529]
[1729732284900,0.000825,67546.0,67545.0,0.73484629]
[1729732285163,0.000825,67546.0,67545.0,0.85828529]
[1729732285872,0.000825,67546.0,67545.0,1.16588529]
[1729732286096,0.000825,67546.0,67545.0,1.17792508]
[1729732286330,0.22203966,67556.0,67545.0,1.17792508]
[1729732286331,0.22203966,67556.0,67555.0,0.22079636]
[1729732286573,0.22203966,67556.0,67555.0,0.72519246]
[1729732286798,0.000824,67561.0,67560.0,0.14258736]
[1729732287029,0.000824,67561.0,67560.0,0.46385277]
[1729732287248,0.22287866,67566.0,67565.0,0.12957836]
[1729732287492,0.22287866,67566.0,67565.0,0.44884377]
[1729732287731,0.000839,67566.0,67565.0,1.02983916]
[1729732291193,0.000839,67566.0,67565.0,1.03446923]
[1729732291403,0.000839,67566.0,67565.0,1.02983916]
[1729732291612,0.000839,67566.0,67565.0,0.86570764]
[1729732291822,0.000839,67566.0,67565.0,0.86107756]
[1729732292275,0.000839,67566.0,67565.0,1.05687675]
[1729732292490,0.000839,67566.0,67565.0,0.87811515]
[1729732292718,0.000839,67566.0,67565.0,0.88811515]
[1729732293203,0.000839,67566.0,67565.0,1.05687675]
[1729732295057,0.000839,67566.0,67565.0,1.13307675]
[1729732295298,0.000839,67577.0,67566.0,0.02417436]
[1729732295525,0.000839,67577.0,67576.0,0.16755936]
[1729732295780,0.000839,67577.0,67576.0,0.54686236]
[1729732296016,0.000839,67577.0,67576.0,0.54486236]
[1729732296237,0.000839,67577.0,67576.0,1.28024396]
[1729732296440,0.000839,67577.0,67576.0,1.49083738]
[1729732296668,0.000839,67577.0,67576.0,1.47879979]
[1729732296902,0.000839,67577.0,67576.0,1.49083328]
[1729732297144,0.000824,67584.0,67576.0,1.49083328]
[1729732297145,0.000824,67584.0,67582.0,0.31330996]
[1729732297380,0.000824,67584.0,67582.0,0.30708566]
[1729732297605,0.000824,67584.0,67582.0,0.88770141]
[1729732299221,0.000824,67584.0,67582.0,0.6018236]
[1729732299476,0.140372,67583.0,67582.0,0.6018236]
[1729732299702,0.022,67583.0,67582.0,0.75932741]
[1729732299930,0.022,67583.0,67582.0,0.87770141]
[1729732300387,0.022,67583.0,67582.0,0.88695889]
[1729732300845,0.022,67583.0,67582.0,0.61308108]
[1729732301074,0.140372,67583.0,67582.0,0.60608108]
[1729732301299,0.140372,67583.0,67582.0,0.61108108]
[1729732301723,0.140372,67583.0,67582.0,0.61308108]
[1729732302208,0.140372,67583.0,67582.0,0.61108108]
[1729732302436,0.140372,67583.0,67582.0,0.61308108]
[1729732302675,0.022,67583.0,67582.0,0.61308108]
[1729732303129,0.140372,67583.0,67582.0,0.61308108]
[1729732303324,0.141197,67583.0,67582.0,0.61308108]
[1729732303859,0.222197,67583.0,67582.0,0.61108108]
[1729732304789,0.103825,67583.0,67582.0,0.61108108]
[1729732305038,0.022825,67583.0,67582.0,0.61108108]
[1729732305718,0.141197,67583.0,67582.0,0.61108108]
[1729732306657,0.54793666,67583.0,67582.0,0.60190672]
[1729732306874,0.325897,67583.0,67582.0,0.60190672]
[1729732307116,0.32811683,67583.0,67582.0,0.60190672]
[1729732308000,0.425897,67583.0,67582.0,0.60190672]
[1729732308762,0.241197,67583.0,67582.0,0.60190672]
[1729732309429,0.241197,67583.0,67582.0,0.60191179]
[1729732312669,0.241197,67583.0,67582.0,0.60391179]
[1729732313327,0.241197,67583.0,67582.0,0.61308615]
[1729732313328,0.022825,67583.0,67582.0,0.61308615]
[1729732313777,0.02504481,67583.0,67582.0,0.61308615]
[1729732313998,0.02504481,67583.0,67582.0,0.61108615]
[1729732314218,0.119196,67584.0,67583.0,0.005]
[1729732314440,0.119196,67584.0,67583.0,0.02629604]
[1729732314673,0.119196,67584.0,67583.0,0.60456091]
[1729732315748,0.119195,67584.0,67583.0,0.60456091]
[1729732317328,0.119195,67584.0,67583.0,0.58326487]
[1729732317570,0.119195,67584.0,67583.0,0.60456013]
[1729732317984,0.119195,67584.0,67583.0,0.60873451]
[1729732318194,0.119195,67584.0,67583.0,0.60456015]
[1729732318610,0.119195,67584.0,67583.0,0.59956015]
[1729732319946,0.219195,67584.0,67583.0,0.59956015]
[1729732320814,0.219195,67584.0,67583.0,0.59956174]
[1729732322414,0.22141494,67584.0,67583.0,0.59956174]
[1729732323063,0.219195,67584.0,67583.0,0.6087361]
[1729732323314,0.219195,67584.0,67583.0,0.60873516]
[1729732323537,0.22141474,67584.0,67583.0,0.60873516]
[1729732323776,0.000824,67584.0,67583.0,0.61073516]
[1729732324448,0.000824,67584.0,67583.0,0.60873516]
[1729732324663,0.000824,67584.0,67583.0,0.72910716]
[1729732325374,0.000824,67584.0,67583.0,0.7308815]
[1729732325589,0.000824,67584.0,67583.0,0.72910716]
[1729732326020,0.000824,67584.0,67583.0,0.89461097]
[1729732330232,0.000824,67584.0,67583.0,0.89460592]
[1729732330659,0.000824,67584.0,67583.0,0.88460592]
[1729732330863,0.000824,67584.0,67583.0,0.87534901]
[1729732331556,0.000824,67584.0,67583.0,0.75697701]
[1729732331803,0.000824,67584.0,67583.0,0.59206768]
[1729732332025,0.119195,67584.0,67583.0,0.58743923]
[1729732332919,0.119195,67584.0,67583.0,0.58943923]
[1729732333176,0.119195,67584.0,67583.0,0.58743923]
[1729732333387,0.119195,67584.0,67583.0,0.58943923]
[1729732334029,0.119195,67584.0,67583.0,0.58743923]
[1729732334240,0.119195,67584.0,67583.0,0.58943923]
[1729732334492,0.000824,67584.0,67583.0,0.58943923]
[1729732335130,0.000824,67584.0,67583.0,0.70781123]
[1729732335348,0.000824,67584.0,67583.0,0.85831504]
[1729732337062,0.000824,67584.0,67583.0,0.94031504]
[1729732337284,0.000824,67584.0,67583.0,1.12370528]
[1729732337495,0.000824,67584.0,67583.0,0.95494368]
[1729732337953,0.000824,67584.0,67583.0,0.95659368]
[1729732338173,0.000824,67584.0,67583.0,0.86959368]
[1729732338395,0.000824,67584.0,67583.0,0.87459368]
[1729732338603,0.000824,67584.0,67583.0,0.86959368]
[1729732340863,0.000824,67584.0,67583.0,0.86959363]
[1729732342413,0.119195,67584.0,67583.0,0.58908923]
[1729732343114,0.119195,67584.0,67583.0,0.57740436]
[1729732343360,0.119195,67584.0,67583.0,0.58900227]
[1729732343821,0.000824,67584.0,67583.0,0.58900227]
[1729732344289,0.000824,67584.0,67583.0,0.59100227]
[1729732344525,0.000824,67584.0,67583.0,0.70937427]
[1729732344783,0.000824,67584.0,67583.0,0.59100227]
[1729732345509,0.119195,67584.0,67583.0,0.58900227]
[1729732345734,0.000824,67584.0,67583.0,0.59100227]
[1729732346431,0.000824,67584.0,67583.0,0.58900227]
[1729732346659,0.000824,67584.0,67583.0,0.59100227]
[1729732346883,0.119195,67584.0,67583.0,0.59100227]
[1729732347114,0.000824,67584.0,67583.0,0.58900227]
[1729732347806,0.000824,67584.0,67583.0,0.57740436]
[1729732348045,0.000824,67584.0,67583.0,0.58902559]
[1729732348745,0.000824,67584.0,67583.0,0.59102559]
[1729732348970,0.000824,67584.0,67583.0,0.70939759]
[1729732349427,0.000824,67584.0,67583.0,0.59102559]
[1729732350088,0.000824,67584.0,67583.0,0.70939759]
[1729732350311,0.000824,67584.0,67583.0,0.70739759]
[1729732351146,0.000824,67584.0,67583.0,0.59102559]
[1729732351567,0.000824,67584.0,67583.0,0.70939759]
[1729732351775,0.000824,67584.0,67583.0,0.8599014]
[1729732352447,0.000824,67584.0,67583.0,0.86453017]
[1729732352672,0.000824,67584.0,67583.0,0.8599014]
[1729732352891,0.000824,67584.0,67583.0,0.8649014]
[1729732353126,0.000824,67584.0,67583.0,0.86953025]
[1729732353778,0.000824,67584.0,67583.0,0.86953013]
[1729732355119,0.000824,67584.0,67583.0,0.86453013]
[1729732355327,0.000824,67584.0,67583.0,0.86953013]
[1729732355549,0.000824,67584.0,67583.0,0.86953018]
[1729732356463,0.000824,67584.0,67583.0,0.71402637]
[1729732356681,0.000824,67584.0,67583.0,0.59565437]
[1729732356920,0.119195,67584.0,67583.0,0.58902559]
[1729732357561,0.119195,67584.0,67583.0,0.57740436]
[1729732357975,0.119195,67584.0,67583.0,0.58902559]
[1729732359315,0.000824,67584.0,67583.0,0.59102559]
[1729732359535,0.00304371,67584.0,67583.0,0.59102559]
[1729732359759,0.000824,67584.0,67583.0,0.59102559]
[1729732360176,0.000681,67584.0,67583.0,0.70939759]
[1729732360833,0.000681,67584.0,67583.0,0.59102559]
[1729732361059,0.000681,67584.0,67583.0,0.70939759]
[1729732361746,0.00290074,67584.0,67583.0,0.70939759]
[1729732361983,0.00290074,67584.0,67583.0,0.59102559]
[1729732362192,0.000681,67584.0,67583.0,0.70939759]
[1729732362419,0.000681,67584.0,67583.0,0.59102559]
[1729732365248,0.000681,67584.0,67583.0,0.70939759]
[1729732365671,0.000681,67584.0,67583.0,0.71939759]
[1729732366088,0.000681,67584.0,67583.0,0.60102559]
[1729732366722,0.000681,67584.0,67583.0,0.71939759]
[1729732368979,0.000681,67584.0,67583.0,0.7240265]
[1729732374253,0.000681,67584.0,67583.0,0.72402649]
[1729732376985,0.000681,67584.0,67583.0,0.8795303]
[1729732377193,0.000681,67584.0,67583.0,0.88693626]
[1729732377601,0.000681,67584.0,67583.0,0.8869358]
[1729732380952,0.000681,67584.0,67583.0,0.88693585]
[1729732383448,0.000681,67584.0,67583.0,0.89693585]
[1729732386528,0.22425881,67596.0,67595.0,0.00917436]
[1729732386686,0.22203966,67596.0,67595.0,0.01117436]
[1729732386890,0.16270377,67598.0,67597.0,0.0051]
[1729732386891,0.04435577,67598.0,67597.0,0.0051]
[1729732387094,0.04435577,67598.0,67597.0,0.57159]
[1729732387302,0.04517977,67599.0,67597.0,0.58319719]
[1729732387509,0.04517977,67599.0,67598.0,0.002]
[1729732387701,0.16352377,67599.0,67598.0,0.01668956]
[1729732387928,0.16352377,67599.0,67598.0,0.58534392]
[1729732388135,0.16351924,67599.0,67598.0,0.57806956]
[1729732389122,0.16351924,67599.0,67598.0,0.58006956]
[1729732391001,0.16351924,67599.0,67598.0,0.57806956]
[1729732391416,0.119168,67599.0,67598.0,0.57806956]
[1729732391619,0.119168,67599.0,67598.0,0.58006956]
[1729732392052,0.119168,67599.0,67598.0,0.57806956]
[1729732392910,0.119168,67599.0,67598.0,0.58006956]
[1729732393665,0.000824,67599.0,67598.0,0.58734392]
[1729732393887,0.000824,67599.0,67598.0,0.87582185]
[1729732394596,0.000824,67599.0,67598.0,0.87119373]
[1729732394835,0.000824,67599.0,67598.0,0.87582138]
[1729732396485,0.000824,67599.0,67598.0,0.87082138]
[1729732396718,0.000824,67599.0,67598.0,0.86582138]
[1729732400385,0.000824,67599.0,67598.0,0.87082138]
[1729732400639,0.000824,67599.0,67598.0,0.87582138]
[1729732401076,0.000824,67599.0,67598.0,1.31518298]
[1729732401283,0.000824,67599.0,67598.0,1.15567586]
[1729732401703,0.000824,67599.0,67598.0,1.14179373]
[1729732401930,0.000824,67599.0,67598.0,1.15567465]
[1729732402998,0.000824,67599.0,67598.0,0.96567465]
[1729732403206,0.000824,67599.0,67598.0,0.9564207]
[1729732404426,0.000824,67599.0,67598.0,0.7524747]
[1729732404635,0.086306,67600.0,67599.0,0.0101]
[1729732404852,0.086306,67600.0,67599.0,0.01890133]
[1729732405073,0.283749,67600.0,67599.0,0.57788812]
[1729732405790,0.283749,67600.0,67599.0,0.58206248]
[1729732405985,0.283749,67600.0,67599.0,0.58406248]
[1729732406192,0.283749,67600.0,67599.0,0.58716248]
[1729732406833,0.283749,67600.0,67599.0,0.57788812]
[1729732409715,0.93315977,67600.0,67599.0,0.57788812]
[1729732409922,0.00082564,67585.0,67573.0,0.00927436]
[1729732410141,0.6570326,67584.0,67573.0,0.00927436]
[1729732410350,0.6570326,67584.0,67575.0,0.002]
[1729732410773,0.6570326,67584.0,67578.0,0.00417436]
[1729732410979,0.6570326,67584.0,67578.0,0.00727436]
[1729732412034,0.6570326,67584.0,67580.0,0.002]
[1729732412255,0.6570326,67584.0,67583.0,0.46282436]
[1729732412256,0.197471,67584.0,67583.0,0.46282436]
[1729732412478,0.19969063,67584.0,67583.0,0.46482436]
[1729732413743,0.00221963,67584.0,67583.0,0.46482436]
[1729732414213,0.34041066,67584.0,67583.0,0.45555]
[1729732414416,0.63960045,67584.0,67583.0,0.45555]
[1729732414639,0.64182053,67584.0,67583.0,0.45555]
[1729732415268,0.64099489,67584.0,67583.0,0.45555]
[1729732415936,0.64182053,67584.0,67583.0,0.45555]
[1729732416821,0.88984034,67584.0,67583.0,0.45555]
[1729732417035,1.03262179,67584.0,67583.0,0.45555]
[1729732417262,0.81058213,67584.0,67583.0,0.45555]
[1729732417477,0.81058213,67584.0,67583.0,0.46221781]
[1729732418133,0.64182053,67584.0,67583.0,0.46221781]
[1729732421151,0.66482053,67584.0,67583.0,0.46221781]
[1729732424151,0.83358213,67584.0,67583.0,0.46221781]
[1729732427256,0.88506383,67584.0,67583.0,0.00734807]
[1729732427458,0.88506383,67584.0,67563.0,0.22203966]
[1729732427459,0.118406,67564.0,67563.0,0.22203966]
[1729732427674,0.89723301,67564.0,67563.0,0.22203966]
[1729732427889,0.72847141,67564.0,67563.0,0.22203966]
[1729732428113,0.218409,67562.0,67556.0,0.00999398]
[1729732428981,0.218409,67562.0,67560.0,0.002]
[1729732429208,0.218409,67562.0,67553.0,0.0818]
[1729732429209,0.218409,67562.0,67561.0,0.01364398]
[1729732429438,0.118409,67562.0,67561.0,0.01364398]
[1729732430106,0.2206266,67564.0,67563.0,0.01199398]
[1729732430322,0.1022206,67564.0,67563.0,0.01199398]
[1729732430527,0.2206266,67564.0,67563.0,0.01199398]
[1729732431611,0.2206266,67564.0,67563.0,0.00699398]
[1729732431822,0.2206266,67564.0,67563.0,0.01199398]
[1729732432911,0.2206266,67564.0,67563.0,0.01132984]
[1729732434433,0.218409,67562.0,67561.0,0.00165]
[1729732437562,0.21569261,67562.0,67561.0,0.00165]
[1729732439481,0.21569261,67562.0,67561.0,0.00628094]
[1729732439739,0.21569261,67562.0,67561.0,0.0076168]
[1729732440382,0.21569261,67562.0,67561.0,0.01761078]
[1729732440592,0.21569261,67562.0,67561.0,0.01297984]
[1729732440799,0.21569261,67562.0,67561.0,0.0176108]
[1729732441249,0.21569261,67562.0,67561.0,0.01627494]
[1729732441680,0.21569261,67562.0,67561.0,0.01128096]
[1729732441885,0.21569261,67562.0,67561.0,0.01627494]
[1729732444384,0.21569261,67562.0,67561.0,0.0176108]
[1729732446776,0.21569261,67562.0,67561.0,0.01761062]
[1729732447014,0.21569261,67562.0,67561.0,0.01627476]
[1729732447228,0.21569261,67562.0,67561.0,0.01627478]
[1729732450070,0.21569261,67562.0,67561.0,0.01761064]
[1729732450540,0.21569261,67562.0,67561.0,0.01627478]
[1729732450751,0.38445421,67562.0,67561.0,0.0062808]
[1729732450968,0.46085421,67562.0,67561.0,0.0062808]
[1729732451384,0.29209261,67562.0,67561.0,0.0062808]
[1729732453940,0.29431307,67562.0,67561.0,0.0062808]
[1729732454188,0.29260114,67562.0,67561.0,0.00165]
[1729732454420,0.29260114,67562.0,67561.0,0.00628135]
[1729732456210,0.46136274,67562.0,67561.0,0.00628135]
[1729732456424,0.61186655,67562.0,67561.0,0.00165]
[1729732456824,0.65594133,67562.0,67561.0,0.00165]
[1729732457071,0.61186655,67562.0,67561.0,0.00165]
[1729732457545,0.65395211,67562.0,67561.0,0.00165]
[1729732458391,0.60964609,67562.0,67561.0,0.00165]
[1729732458802,0.68021725,67562.0,67561.0,0.00165]
[1729732459020,0.60964609,67562.0,67561.0,0.00165]
[1729732459463,0.67610733,67562.0,67561.0,0.00165]
[1729732459881,0.60964609,67562.0,67561.0,0.00165]
[1729732461637,0.45914228,67562.0,67561.0,0.00165]
[1729732461882,0.21398068,67562.0,67561.0,0.00165]
[1729732462377,0.25830765,67562.0,67561.0,0.00165]
[1729732462635,0.21380454,67562.0,67561.0,0.00165]
[1729732462887,0.25813648,67562.0,67561.0,0.00165]
[1729732463409,0.21380454,67562.0,67561.0,0.00165]
[1729732464383,0.28029758,67562.0,67561.0,0.00165]
[1729732464875,0.21380454,67562.0,67561.0,0.00165]
[1729732465357,0.28031114,67562.0,67561.0,0.00165]
[1729732466470,0.21380454,67562.0,67561.0,0.00165]
[1729732469548,0.30241953,67562.0,67561.0,0.00165]
[1729732471557,0.30625826,67562.0,67561.0,0.00165]
[1729732472428,0.21764327,67562.0,67561.0,0.00165]
[1729732472855,0.53690868,67562.0,67561.0,0.00165]
[1729732473080,0.72030868,67562.0,67561.0,0.00165]
[1729732476407,0.21764327,67562.0,67561.0,0.00165]
[1729732476814,0.21380454,67562.0,67561.0,0.00165]